Cogmind - Beta 16 @@@ ROGUE MODE // 2025.11.04 @ 11:57:59 Player: Demo Result: Destroyed by Autobeam Turret with Autobeam Performance ------------- Evolutions (0) 0 Regions Visited (3) 600 Robots Destroyed (5) 25 Value Destroyed (140) 140 Prototype IDs (0) 0 Alien Tech Used (0) 0 Bonus (0) 0 TOTAL SCORE: 765 Bonus ------- None Cogmind --------- Core Integrity 0/250 Matter 166/300 Energy 98/100 System Corruption 0% Temperature Cool (12) Movement Core (50) Location -10/Subcaves Parts ------- > --- POWER (1) -------- (None) > --- PROPULSION (2) --- (None) > --- UTILITY (2) ------ (None) > --- WEAPON (2) ------- (None) > --- INVENTORY (5) ---- Large Storage Unit Peak State ------------ > --- POWER ------------ (None) > --- PROPULSION ------- Light Treads Light Treads > --- UTILITY ---------- Signal Interpreter Light Armor Plating > --- WEAPON ----------- Grenade Launcher Grenade Launcher > --- INVENTORY -------- Large Storage Unit Grenade Launcher Grenade Launcher [Rating: 6] Favorites ----------- Power None Propulsion Light Treads Treads Light Treads Utility Signal Interpreter Processor Signal Interpreter Protection Light Armor Plating Weapon Grenade Launcher Launcher Grenade Launcher Build | -11 -10 -10 -10 ------- Run | Yrd Mat Min Sub Slots Evolved . | . . . . Power . | . . . . Propulsion . | . . . . Utility . | . . . . Weapon . | . . . . Parts Attached 9 | 2 3 . 4 Power . | . . . . Engine . | . . . . Core . | . . . . Reactor . | . . . . Propulsion 2 | 2 . . . Treads 2 | 2 . . . Leg . | . . . . Wheel . | . . . . Hover . | . . . . Flight . | . . . . Utility 2 | . 2 . . Device . | . . . . Storage . | . . . . Processor 1 | . 1 . . Hackware . | . . . . Protection 1 | . 1 . . Artifact . | . . . . Weapon 5 | . 1 . 4 Energy Gun . | . . . . Energy Cannon . | . . . . Ballistic Gun . | . . . . Ballistic Cannon . | . . . . Launcher 5 | . 1 . 4 Special Weapon . | . . . . Impact Weapon . | . . . . Slashing Weapon . | . . . . Piercing Weapon . | . . . . Special Melee Weapon . | . . . . Unidentified Prototypes . | . . . . Parts Lost 8 | . . . 8 Power . | . . . . Propulsion 2 | . . . 2 Utility 2 | . . . 2 Weapon 4 | . . . 4 Highest Loss Streak 4 | . . . 4 To Critical Strikes . | . . . . Average Backups 2 | . 1 5 2 Power . | . . . . Propulsion . | . . . . Utility . | . . 1 1 Weapon 1 | . 1 4 1 Tool/Special . | . . . . Unused Backups 2 | . 1 . 1 Power . | . . . . Propulsion . | . . . . Utility 1 | . . . 1 Weapon 1 | . 1 . . Tool/Special . | . . . . Average Slot Usage (%) 39 | . 38 57 29 Treads 19 | . 28 28 11 Processor 11 | . 2 14 13 Protection 6 | . 6 14 1 Launcher 2 | . 2 . 3 Peak Build Rating 6 | 2 4 4 6 Average Rating 2 | 1 2 4 2 On Entrance 2 | . 2 4 4 Avg Prop Armor Cover (%) 32 | 41 34 27 34 Naked Turns 3 | . . . 3 Heaviest Build 6 | . 6 3 3 Greatest Support 3 | 3 3 3 3 Greatest Overweight (x) 1 | . 1 . . Average Overweight (x) . | . . . . Largest Inventory Capacity 5 | 5 5 5 5 Average Capacity 5 | 5 5 5 5 Most Carried 5 | . 5 5 5 Average Carried 2 | . 2 5 2 Final Capacity 5 | 5 5 5 5 Final Carried 5 | . 5 5 1 Class Distribution -------------------- 100% | Mutant Dominant Class ---------------- Mutant | -10/Materials Mutant | -10/Mines Mutant | -10/Subcaves Resources | -11 -10 -10 -10 ----------- Run | Yrd Mat Min Sub Matter Collected 276 | 176 75 . 25 Remotely . | . . . . Salvage Created 75 | . 10 . 65 Parts 8 | . 5 . 3 Haulers Intercepted . | . . . . Recyclers Shooed . | . . . . Parts Field Recycled . | . . . . Retrieved Matter . | . . . . Parts Self-Destructed . | . . . . Prevented . | . . . . Parts Restored . | . . . . Kills | -11 -10 -10 -10 ------- Run | Yrd Mat Min Sub Combat Hostiles Destroyed 5 | . 2 . 3 AOE 5 | . 2 . 3 Classes Destroyed 2 | . 1 . 1 Swarmer 2 | . 2 . . Subdweller 3 | . . . 3 Best Kill Streak 2 | . 2 . 2 Combat Bots Only 2 | . 2 . 2 Max Kills in Single Turn 2 | . 2 . 1 Gunslinging . | . . . . Exploded 2 | . 2 . 1 Melee . | . . . . Uniques/NPCs Destroyed . | . . . . Combat | -11 -10 -10 -10 -------- Run | Yrd Mat Min Sub Hostile Shots Fired 69 | . 23 . 46 Missed 23 | . 8 . 15 Hits 46 | . 15 . 31 Projectile 46 | . 15 . 31 Damage Taken 909 | . 126 . 783 Core 253 | . 9 . 244 Absorbed by Shields . | . . . . Core Remaining (%) 100 | 100 . . . Volleys Fired 9 | . 2 . 7 Largest 2 | . 1 . 2 Hottest 60 | . 30 . 60 Shots Fired 14 | . 2 . 12 Gun . | . . . . Cannon . | . . . . Launcher 14 | . 2 . 12 Special . | . . . . Kinetic . | . . . . Thermal . | . . . . Explosive 14 | . 2 . 12 Electromagnetic . | . . . . Robot Hit Streak 7 | . 1 . 7 Robot Miss Streak 1 | . . . 1 Penetration Max . | . . . . Secondary Targets . | . . . . Shots Hit Robots 11 | . 1 . 10 Core Hits 6 | . 2 . 4 Critical Kills . | . . . . Critical Parts Destroyed . | . . . . Critical Strikes . | . . . . Melee Attacks . | . . . . Impact . | . . . . Slashing . | . . . . Piercing . | . . . . Sneak Attacks . | . . . . Combat Hostiles . | . . . . Follow-up Attacks . | . . . . Damage Inflicted 700 | . 95 . 605 Guns . | . . . . Cannons . | . . . . Explosions 700 | . 95 . 605 Melee . | . . . . Ramming . | . . . . Kinetic . | . . . . Thermal . | . . . . Explosive 700 | . 95 . 605 Electromagnetic . | . . . . Impact . | . . . . Slashing . | . . . . Piercing . | . . . . Highest Corruption . | . . . . Average Corruption . | . . . . Corruption Purged . | . . . . Corruption Blocked . | . . . . Overload Shots . | . . . . Overflow Damage 7 | . . . 7 Projectiles . | . . . . Explosions 7 | . . . 7 Melee . | . . . . Knockbacks . | . . . . Impact . | . . . . Kinetic . | . . . . Secondary . | . . . . Self-Inflicted Damage 366 | . 6 . 360 Shots 12 | . 1 . 11 Rammed . | . . . . Targets Rammed . | . . . . Kicked . | . . . . Crushed . | . . . . Highest Temperature . | . . . . Average Temperature . | . . . . Received Heat Transfer 60 | . . . 60 Siege Activations . | . . . . Martial Activations . | . . . . Shielding Activations . | . . . . Robots Disrupted . | . . . . Combat Hostiles . | . . . . Robots Corrupted . | . . . . Combat Hostiles . | . . . . Parts Fried . | . . . . Impact Corruptions . | . . . . Robots Melted . | . . . . Combat Hostiles . | . . . . Parts Melted 1 | . . . 1 Heat Transferred . | . . . . Parts Sabotaged . | . . . . Parts Stolen . | . . . . Parts Stripped . | . . . . Power Chain Reactions . | . . . . Alert | -11 -10 -10 -10 ------- Run | Yrd Mat Min Sub Maximum Alert Level . | . . . . Low Security (%) 100 | 100 100 100 . Level 1 . | . . . . Level 2 . | . . . . Level 3 . | . . . . Level 4 . | . . . . Level 5 . | . . . . High Security . | . . . . Max Security . | . . . . Peak Influence 60 | . 60 19 . Initial 19 | . . 19 . Average 10 | . 19 6 . Influence Increases 60 | . 60 . . Destroy 0b10 Robot/C 40 | . 40 . . Destroy Leader 10 | . 10 . . Destroy Structure 10 | . 10 . . Influence Decreases 60 | . 10 50 . Entered New Map 31 | . . 31 . Time Decay 29 | . 10 19 . Squads Dispatched 1 | . 1 . . Investigation . | . . . . Extermination . | . . . . Reinforcement 1 | . 1 . . Assault . | . . . . Garrison . | . . . . Intercept . | . . . . Searches Triggered . | . . . . Construction Impeded . | . . . . Haulers Reinforced . | . . . . Active Scanning Responses . | . . . . Cargo Convoy Interrupts . | . . . . Stealth | -11 -10 -10 -10 --------- Run | Yrd Mat Min Sub Distress Signals . | . . . . Communications Jammed . | . . . . Distress Signals . | . . . . Times Spotted 16 | . 6 . 10 Peak Tracking Total 7 | . 6 . 7 Tactical Retreats . | . . . . Traps | -11 -10 -10 -10 ------- Run | Yrd Mat Min Sub Traps Triggered . | . . . . Indirectly . | . . . . Trap Hack Attempts . | . . . . Triggered . | . . . . Disarmed . | . . . . Reprogrammed . | . . . . Reused . | . . . . Traps Extracted . | . . . . Installed . | . . . . Triggered . | . . . . Machines | -11 -10 -10 -10 ---------- Run | Yrd Mat Min Sub Machines Disabled . | . . . . Max in Single Turn . | . . . . Machines Repaired . | . . . . Machines Dismantled . | . . . . Machines Sabotaged . | . . . . Overloaded Fab Kills . | . . . . Hacking | -11 -10 -10 -10 --------- Run | Yrd Mat Min Sub Machines Accessed . | . . . . Terminals . | . . . . Fabricators . | . . . . Repair Stations . | . . . . Recycling Units . | . . . . Scanalyzers . | . . . . Garrison Access . | . . . . Total Hacks . | . . . . Successful . | . . . . Failed . | . . . . Catastrophic . | . . . . Database Lockouts . | . . . . Manual . | . . . . Terminals . | . . . . Fabricators . | . . . . Repair Stations . | . . . . Recycling Units . | . . . . Scanalyzers . | . . . . Garrison Access . | . . . . Terminal Hacks . | . . . . Fabricator Hacks . | . . . . Repair Station Hacks . | . . . . Recycling Unit Hacks . | . . . . Scanalyzer . | . . . . Garrison Access Hacks . | . . . . Unauthorized Hacks . | . . . . Terminals . | . . . . Fabricators . | . . . . Repair Stations . | . . . . Recycling Units . | . . . . Scanalyzers . | . . . . Garrison Access . | . . . . Data Cores Recovered . | . . . . Used . | . . . . Hacking Detections . | . . . . Full Trace Events . | . . . . Feedback Events . | . . . . Feedback Blocked . | . . . . Robot Schematics Acquired . | . . . . Robots Built . | . . . . Authchips . | . . . . Time . | . . . . Total Robot Build Rating . | . . . . Part Schematics Acquired . | . . . . Parts Built . | . . . . Authchips . | . . . . Time . | . . . . Total Part Build Rating . | . . . . Part Studies Acquired . | . . . . Parts Repaired . | . . . . Time . | . . . . Parts Recycled . | . . . . Recycled Matter . | . . . . Retrieved Matter . | . . . . Retrieved Components . | . . . . Parts Scanalyzed . | . . . . Part Schematics Acquired . | . . . . Parts Damaged . | . . . . Bothacking | -11 -10 -10 -10 ------------ Run | Yrd Mat Min Sub Used RIF Installer . | . . . . Robots Hacked . | . . . . Non-combat . | . . . . Combat . | . . . . Robot Hacks Applied . | . . . . Relay Couplers Released . | . . . . Fabnet Peak Effective % . | . . . . Robots Rewired . | . . . . Allies Hacked . | . . . . Hacks Repelled . | . . . . Allies | -11 -10 -10 -10 -------- Run | Yrd Mat Min Sub Total Allies . | . . . . Largest Group . | . . . . Highest-Rated Group . | . . . . Highest-Rated Ally . | . . . . Total Orders . | . . . . Ally Attacks . | . . . . Total Damage . | . . . . Kills . | . . . . Allies Corrupted . | . . . . Allies Melted . | . . . . Intel | -11 -10 -10 -10 ------- Run | Yrd Mat Min Sub Active Infowar (turns) . | . . . . Robot Analysis Total . | . . . . Derelict Logs Recovered . | . . . . Drone Launches . | . . . . Drone Recoveries . | . . . . Exploration | -11 -10 -10 -10 ------------- Run | Yrd Mat Min Sub Turns Passed 331 | 22 64 83 162 Spaces Moved 544 | 39 97 138 270 Core 544 | 39 97 138 270 Treads . | . . . . Legs . | . . . . Wheels . | . . . . Hover . | . . . . Flight . | . . . . Fastest Speed 50 | 50 50 50 50 Average Speed 50 | 50 51 50 50 Slowest Speed 100 | 50 100 50 50 Overloaded Moves . | . . . . Propulsion Burnouts . | . . . . Robots Hopped . | . . . . Potential Cave-ins . | . . . . Cave-ins Triggered . | . . . . Exploration Rate (%) 26 | 3 31 38 33 Regions Visited 3 Branch Regions 2 Pre-discovered Areas . | . . . . Known Exits Taken 2 | . 1 1 . Unknown Exits Taken 1 | 1 . . . Scrap Searched . | . . . . Spaces Dug . | . . . . Terrain Destroyed 34 | . 8 . 26 Melee . | . . . . Projectile . | . . . . AOE 34 | . 8 . 26 Terrain Rammed . | . . . . Walls Destroyed . | . . . . Machines Disabled . | . . . . Actions | -11 -10 -10 -10 --------- Run | Yrd Mat Min Sub Total 586 | 40 110 151 285 Wait 14 | . . 14 . Move 541 | 38 96 137 270 Hop . | . . . . Pick Up 6 | . 6 . . Fast Attach 5 | 2 3 . . Attach 6 | . . . 6 Detach 3 | . 1 . 2 Swap . | . . . . Drop 2 | . 2 . . Fire 9 | . 2 . 7 Melee . | . . . . Ram . | . . . . Kick . | . . . . Crush . | . . . . Escape Stasis . | . . . . Rewire . | . . . . Trap . | . . . . Miscellaneous . | . . . . Route ------- -11/Scrapyard -10/Materials -10/Mines -10/Subcaves (discovered 2 exits: [*Mat] / [*Rec]) History --------- Turn | Location | Event 4 | -11/Scrapyard | Discovered new exit (range 14) 23 | -11/Scrapyard | Entered Materials 75 | -10/Materials | Discovered new exit (range 16) 86 | -10/Materials | Identified exit to Mines 87 | -10/Materials | Entered Mines 167 | -10/Mines | Discovered new exit (range 5) 170 | -10/Mines | Identified exit to Subcaves 170 | -10/Mines | Entered Subcaves 172 | -10/Subcaves | Ambushed by Subdwellers from Twisted Machinery 202 | -10/Subcaves | Discovered new exit (range 13) 217 | -10/Subcaves | Lost 4 parts (1n1u2w) 292 | -10/Subcaves | Core integrity fell below 50% 309 | -10/Subcaves | Build established: Mutant 322 | -10/Subcaves | Lost 3 parts (1n2w) 328 | -10/Subcaves | Discovered new exit (range 11) 331 | -10/Subcaves | Core integrity fell below 20% 332 | -10/Subcaves | Destroyed by Autobeam Turret with Autobeam Last Messages --------------- 00182_ Lgt. Armor Plating destroyed. 00182_ Destroyed Lgt. Armor Plating. 00182_ Lgt. Treads destroyed. 00182_ Destroyed Lgt. Treads. 00185_ Grenade Launcher destroyed. 00185_ Destroyed Grenade Launcher. 00186_ Grenade Launcher destroyed. 00192_ I2-CZH(R) destroyed. 00202_ EXIT=FOUND 00286_ Lgt. Treads destroyed. 00289_ Sub. Optics melted. 00289_ X6-C5E(R) destroyed. 00291_ Grenade Launcher destroyed. 00291_ Destroyed Grenade Launcher. 00291_ Grenade Launcher destroyed. 00291_ Destroyed Grenade Launcher. 00328_ EXIT=FOUND 00329_ S-10 Pest springs to life. 00329_ Signal Interpreter destroyed. 00329_ S-10 Pest springs to life. Map ----- +----------------------------------------------------+ | ?????????????????????????????????????????????????? | | ?????????????????????????????????????????????????? | | ?????????????????????????????????????????????????? | | ?????????????????????????????????????????????????? | | ?????????????????????????????????????????????????? | | ?????????????????????????????????????????????????? | | ?????????????????????????????????????????????????? | | ?????????????????????????????????????????????????? | | ?????????????????????????????????????????????????? | | ?????????????????????????????????????????????????? | | ?????????????????????????????????????????????????? | | ?????????????????????????????????????????????????? | | ?????????????????????????????????????????????????? | | ?????????????????????????????????????????????????? | | ?????????????????????????????????????????????????? | | ?????????????????????????????????????????????????? | | ????????###??????????????????????????????????????? | | ???????## ??????????????????????????????????????? | | ??"???## ??????????????????????????????????????? | | ??" ### ?????????????????????????????????????? | | ??" ????????########?????????????????????? | | ???# ????????#"s """#?????????????????????? | | ???# ####????# s "#?????????????????????? | | ??## ###### "#?????????????????????? | | ??# t""##????????????????????? | | ### @ <#????????????????????? | | # s t""##????????????????????? | | ####s "#?????????????????????? | | ?# #?# "#?????????????????????? | | ?#" ##?#" """#?????????????????????? | | # ### ###########?????????????????????? | | ??????# ### #??????????????????????????? | | ?????# ???# #????????????????" ???????? | | ?????#?????# #???????????????"" ????????? | | ???????????# ## ###??????????###""?????????? | | ???????????###### ##????????## ####??????? | | ????????????????# ####?????# "" ##?????? | | ????????????????# #####?# "" #?????? | | ????????????????## # # ### #??????? | | ?????????????????# #????????? | | ????????????????# #?????####? | | ???????????????# ### ## # # #????## ## | | ???????????????######?# ###### #????# | | ????????????????????? #????# ##??## | | ??????????????????? ###????# #### # | | ??????????????????# ##??????# # | | ????????????????? ##??????# # | | ???????????????? #####???????# ### ## # | | ???????????????? ?????????????# #?##### ## | | ??????????????????????????????# ##?????# #? | +----------------------------------------------------+ Best States ------------- Heat Dissipation 25 Energy Generation 5 Energy Capacity 100 Matter Stores 281 Matter Capacity 300 Sight Range 16 Terrain Scan Density 10 Armor Coverage 150 Evasion (%) 50 Recoil Reduction 2 Item Schematics ----------------- None Robot Schematics ------------------ None Fabricated ------------ Nothing Repaired ---------- Nothing Studied --------- None Alien Tech Used ----------------- None Achievements -------------- None Challenges ------------ None Game ------ Seed SapperNullTreads Manual? 0 Play Time 00:03:37 Cumulative 367.4 hours Start 2025.11.04 @ 11:55:32 End 2025.11.04 @ 11:57:59 Sessions 1 Manual Loads 0 Difficulty Rogue Special Mode None Game No. 328 Rogue 328 Adventurer 0 Explorer 0 Win Type - Total 2 Types 1/1/0/0/0/0/0/0/0/0 Lore% 83 Gallery% 82 Achievement% 59 Wizard Run 0 Options --------- Layout 1 ASCII 0 Keyboard 0 Movement Numpad Keybinds 0 Fullscreen 1 Font 24/Smallcaps Map View 50x35 Zoom Use 0% Tactical HUD 1 Map Filters NONE Filters NONE Steam 1 RUN: 89eaaedb-23ac-4d67-96ca-3f9655ee44bf